fUST/lending_fUST_20250606
["ID","MTS","AMOUNT","RATE_DAILY","PERIOD"]
[364632436,1749169835375,-440.0,0.00019865,2]
[364632437,1749169835385,-440.0,0.00019865,2]
[364632438,1749169835395,-440.0,0.00019865,2]
[364632439,1749169835405,-440.0,0.00019865,2]
[364632440,1749169835416,-440.0,0.00019865,2]
[364632441,1749169835427,-440.0,0.00019865,2]
[364632442,1749169835436,-440.0,0.00019865,2]
[364632443,1749169835446,-440.0,0.00019865,2]
[364632444,1749169835455,-440.0,0.00019865,2]
[364632445,1749169835465,-440.0,0.00019865,2]
[364632446,1749169835475,-440.0,0.00019865,2]
[364632447,1749169835485,-420.0,0.00019865,2]
[364632448,1749169835495,-440.0,0.00019865,2]
[364632449,1749169835505,-418.8709901,0.00019865,2]
[364632450,1749169835514,-440.0,0.00019865,2]
[364632451,1749169835524,-440.0,0.00019865,2]
[364632452,1749169835533,-440.0,0.00019865,2]
[364632453,1749169835543,-440.0,0.00019865,2]
[364632454,1749169835553,-440.0,0.00019865,2]
[364632455,1749169835563,-440.0,0.00019865,2]
[364632456,1749169835571,-440.0,0.00019865,2]
[364632457,1749169835581,-440.0,0.00019865,2]
[364632458,1749169835590,-420.0,0.00019865,2]
[364632459,1749169835599,-451.9210257,0.00019865,2]
[364632460,1749169835609,-440.0,0.00019866,2]
[364632461,1749169835618,-440.0,0.00019866,2]
[364632462,1749169835628,-332.43432861,0.00019866,2]
[364632463,1749169835638,-440.0,0.00019866,2]
[364632464,1749169835647,-519.67915229,0.00019866,2]
[364632465,1749169835657,-440.0,0.00019867,2]
[364632466,1749169835667,-440.0,0.00019868,2]
[364632467,1749169835678,-440.0,0.00019868,2]
[364632468,1749169835687,-440.0,0.00019868,2]
[364632469,1749169835697,-440.0,0.00019868,2]
[364632470,1749169835706,-440.0,0.00019868,2]
[364632471,1749169835716,-440.0,0.00019868,2]
[364632472,1749169835726,-183.06960148,0.00019934,2]
[364632473,1749169835737,-200.0,0.00019999,2]
[364632474,1749169835747,-440.0,0.00020138,2]
[364632475,1749169835757,-430.0,0.00020138,2]
[364632476,1749169835767,-490.52,0.00020138,2]
[364632477,1749169835776,-559.00327283,0.00020138,2]
[364632478,1749169835786,-440.0,0.00020138,2]
[364632479,1749169835795,-440.0,0.00020138,2]
[364632480,1749169835805,-440.0,0.00020138,2]
[364632481,1749169835815,-440.0,0.00020138,2]
[364632482,1749169835825,-430.0,0.00020138,2]
[364632483,1749169835835,-440.0,0.00020138,2]
[364632484,1749169835845,-589.85,0.00020139,2]
[364632485,1749169835855,-440.0,0.00020139,2]
[364632486,1749169835864,-440.0,0.00020139,2]
[364632487,1749169835873,-440.0,0.00020139,2]
[364632488,1749169835883,-440.0,0.00020139,2]
[364632489,1749169835892,-440.0,0.00020139,2]
[364632490,1749169835902,-440.0,0.00020139,2]
[364632491,1749169835911,-440.0,0.00020139,2]
[364632492,1749169835920,-440.0,0.00020139,2]
[364632493,1749169835932,-318.80483166,0.00020139,2]
[364632494,1749169835943,-440.0,0.00020139,2]
[364632495,1749169835953,-343.66879871,0.00020139,2]
[364632496,1749169835963,-440.0,0.00020139,2]
[364632497,1749169835973,-440.0,0.00020139,2]
[364632498,1749169835984,-440.0,0.00020139,2]
[364632499,1749169835993,-452.4,0.00020139,2]
[364632500,1749169836003,-440.0,0.00020139,2]
[364632501,1749169836013,-440.0,0.00020139,2]
[364632502,1749169836024,-421.12883978,0.00020139,2]
[364632503,1749169836034,-440.0,0.00020139,2]
[364632504,1749169836044,-440.0,0.00020139,2]
[364632505,1749169836053,-440.0,0.00020141,2]
[364632506,1749169836063,-440.0,0.00020142,2]
[364632507,1749169836073,-440.0,0.00020142,2]
[364632508,1749169836082,-440.0,0.00020142,2]
[364632509,1749169836091,-519.78,0.00020142,2]
[364632510,1749169836101,-204.744679,0.00020187,2]
[364632511,1749169836111,-440.0,0.00020412,2]
[364632512,1749169836122,-528.1,0.00020412,2]
[364632513,1749169836131,-421.94,0.00020413,2]
[364632514,1749169836141,-440.0,0.00020413,2]
[364632515,1749169836151,-440.0,0.00020413,2]
[364632516,1749169836160,-340.44839161,0.00020415,2]
[364632517,1749169836170,-440.0,0.00020416,2]
[364632518,1749169836182,-440.0,0.00020416,2]
[364632519,1749169836192,-440.0,0.00020416,2]
[364632520,1749169836202,-500.0,0.00020488,2]
[364632521,1749169836212,-440.0,0.00020686,2]
[364632522,1749169836222,-440.0,0.00020687,2]
[364632523,1749169836231,-440.0,0.0002069,2]
[364632524,1749169836240,-440.0,0.0002069,2]
[364632525,1749169836250,-440.0,0.0002069,2]
[364632526,1749169836259,-1221.80389512,0.000209,4]
[364632527,1749169836269,-440.0,0.0002096,2]
[364632528,1749169836281,-440.0,0.00020961,2]
[364632529,1749169836291,-440.0,0.00020964,2]
[364632530,1749169836301,-440.0,0.00020964,2]
[364632531,1749169836310,-440.0,0.00020964,2]
[364632532,1749169836320,-229.48950782,0.00021006,2]
[364632533,1749169836330,-212.94059491,0.00021012,2]
[364632534,1749169836345,-1221.80389487,0.00021038,4]
[364632535,1749169836355,-1221.80389487,0.00021176,4]
[364632536,1749169836364,-440.0,0.00021234,2]
[364632537,1749169836375,-2679.0,0.00021235,2]
[364632538,1749169836384,-2679.0,0.00021235,2]
[364632539,1749169836394,-2679.0,0.00021235,2]
[364632540,1749169836403,-2679.0,0.00021235,2]
[364632541,1749169836414,-2679.0,0.00021235,2]
[364632542,1749169836426,-2679.0,0.00021235,2]
[364632543,1749169836436,-2679.0,0.00021235,2]
[364632544,1749169836445,-2679.0,0.00021235,2]
[364632545,1749169836455,-2679.0,0.00021235,2]
[364632546,1749169836465,-2679.0,0.00021235,2]
[364632547,1749169836474,-2679.0,0.00021235,2]
[364632548,1749169836484,-2679.0,0.00021235,2]
[364632549,1749169836494,-456.12612738,0.00021235,2]
[364632550,1749169836512,-727.10796862,0.00021235,2]
[364632591,1749169837920,-403.19028049,0.0001932,2]
[364632594,1749169837936,-36.80971951,0.0001932,2]
[364632596,1749169837946,-440.0,0.00019594,2]
[364632598,1749169837956,-1495.765904,0.00021235,2]
[364632600,1749169837965,-1765.66462023,0.00021235,2]
[364632602,1749169837977,-913.33537977,0.00021235,2]
[364632604,1749169837987,-2679.0,0.00021235,2]
[364632606,1749169837996,-2679.1,0.00021235,2]
[364632608,1749169838005,-440.0,0.00021235,2]
[364632610,1749169838014,-63.07517885,0.00021238,2]
[364632612,1749169838026,-376.92482115,0.00021238,2]
[364632614,1749169838035,-440.0,0.00021238,2]
[364632616,1749169838045,-1752.8,0.000213,2]
[364632618,1749169838055,-952.93654841,0.00021314,5]
[364632622,1749169838066,-268.86734646,0.00021314,5]
[364632625,1749169838076,-112.72322185,0.00021319,2]
[364632627,1749169838087,-387.27677815,0.00021319,2]
[364632629,1749169838096,-1221.80389487,0.00021452,5]
[364632631,1749169838105,-440.0,0.00021508,2]
[364632634,1749169838115,-440.0,0.00021509,2]
[364632636,1749169838124,-440.0,0.00021512,2]
[364632638,1749169838133,-440.0,0.00021512,2]
[364632640,1749169838143,-1221.80389487,0.0002159,5]
[364632642,1749169838152,-181.684091,0.00021608,2]
[364632644,1749169838161,-1221.80389487,0.00021728,5]
[364632646,1749169838170,-440.0,0.00021782,2]
[364632648,1749169838180,-440.0,0.00021783,2]
[364632650,1749169838190,-440.0,0.00021786,2]
[364632652,1749169838199,-440.0,0.00021786,2]
[364632653,1749169838209,-748.19,0.000218,2]
[364632656,1749169838220,-1221.80389487,0.00021866,6]
[364632658,1749169838229,-440.0,0.00021917,2]
[364632659,1749169838239,-207.4,0.00021942,2]
[364632662,1749169838250,-1221.80389487,0.00022003,6]
[364632664,1749169838259,-500.0,0.00022056,2]
[364632665,1749169838268,-440.0,0.00022056,2]
[364632667,1749169838278,-440.0,0.00022057,2]
[364632668,1749169838287,-440.0,0.0002206,2]
[364632669,1749169838296,-440.0,0.0002206,2]
[364632670,1749169838305,-1221.80389487,0.00022141,6]
[364632671,1749169838314,-1361.1679469,0.000222,69]
[364632672,1749169838323,-1361.16794688,0.000222,69]
[364632673,1749169838333,-1361.16794688,0.000222,69]
[364632674,1749169838343,-1221.80389487,0.00022279,6]
[364632675,1749169838352,-440.0,0.0002233,2]
[364632676,1749169838362,-440.0,0.00022331,2]
[364632677,1749169838371,-440.0,0.00022334,2]
[364632678,1749169838382,-440.0,0.00022334,2]
[364632679,1749169838391,-1221.80389487,0.00022417,7]
[364632680,1749169838400,-1221.80389487,0.00022555,7]
[364632681,1749169838409,-2109.32415395,0.0002259,2]
[364632683,1749169838419,-1752.8,0.000226,7]
[364632685,1749169838429,-440.0,0.00022604,2]
[364632687,1749169838437,-440.0,0.00022605,2]
[364632689,1749169838447,-440.0,0.00022608,2]
[364632691,1749169838456,-440.0,0.00022608,2]
[364632693,1749169838466,-400.0,0.0002268,2]
[364632695,1749169838475,-1221.80389487,0.00022693,7]
[364632697,1749169838484,-1221.80389487,0.00022831,8]
[364632699,1749169838493,-446.27,0.00022878,2]
[364632701,1749169838503,-440.0,0.00022879,2]
[364632702,1749169838512,-440.0,0.00022882,2]
[364632704,1749169838521,-440.0,0.00022882,2]
[364632707,1749169838531,-1221.80389487,0.00022969,8]
[364632708,1749169838540,-748.19,0.00023,7]
[364632710,1749169838549,-1361.16794688,0.00023032,72]
[364632712,1749169838559,-1221.80389487,0.00023107,8]
[364632714,1749169838568,-440.0,0.00023153,2]
[364632716,1749169838577,-170.0631,0.00023156,2]
[364632718,1749169838587,-440.0,0.00023156,2]
[364632720,1749169838596,-1221.80389487,0.00023245,8]
[364632722,1749169838605,-160.0,0.00023294,2]
[364632724,1749169838620,-215.0738,0.00023311,2]
[364632727,1749169838630,-364.5107659,0.00023342,2]
[364632729,1749169838640,-1221.80389487,0.00023383,9]
[364632731,1749169838649,-172.72,0.00023427,2]
[364632733,1749169838659,-440.0,0.0002343,2]
[364632735,1749169838668,-158.5442955,0.00023479,2]
[364632737,1749169838678,-572.6068135,0.00023479,2]
[364632739,1749169838687,-1918.63285145,0.000235,2]
[364632741,1749169838697,-1221.80389487,0.00023521,9]
[364632743,1749169838711,-1221.80389487,0.00023659,9]
[364632745,1749169838721,-440.0,0.00023704,2]
[364632748,1749169838732,-1221.80389487,0.00023797,9]
[364632750,1749169838741,-561.888697,0.00023824,3]
[364632751,1749169838750,-1752.8,0.000239,7]
[364632753,1749169838759,-150.0,0.000239,2]
[364632755,1749169838769,-1221.80389487,0.00023934,10]
[364632757,1749169838777,-440.0,0.00023978,2]
[364632759,1749169838787,-10549.7246697,0.00023995,2]
[364632761,1749169838797,-151.0,0.00024,8]
[364632763,1749169838807,-4785.74063902,0.00024,7]
[364632765,1749169838816,-637.65032713,0.00024027,2]
[364632767,1749169838825,-1221.80389487,0.00024072,10]
[364632769,1749169838835,-637.65032713,0.00024073,2]
[364632771,1749169838844,-5000.0,0.00024081,30]
[364632773,1749169838853,-5000.0,0.00024081,30]
[364632775,1749169838862,-5000.0,0.00024081,30]
[364632777,1749169838871,-5000.0,0.00024081,30]
[364632779,1749169838881,-5000.0,0.00024081,30]
[364632781,1749169838890,-5000.0,0.00024081,30]
[364632783,1749169838899,-5000.0,0.00024081,30]
[364632785,1749169838909,-5000.0,0.00024081,30]
[364632787,1749169838918,-315.01552021,0.00024081,30]
[364632789,1749169838927,-12675.11581177,0.00024081,30]
[364632791,1749169838936,-315.01552021,0.0002409,30]
[364632793,1749169838946,-500.0,0.00024099,2]
[364632795,1749169838960,-388.44715365,0.00024099,2]
[364632797,1749169838975,-500.0,0.00024099,2]
[364632798,1749169838984,-461946.19344529,0.000241,7]
[364632800,1749169838993,-637.65032713,0.00024119,2]
[364632803,1749169839003,-800.0,0.00024127,2]
[364632805,1749169839013,-637.65032713,0.00024165,2]
[364632807,1749169839022,-748.19,0.000242,7]
[364632809,1749169839031,-5000.0,0.00024202,30]
[364632811,1749169839040,-1826.33,0.00024202,30]
[364632813,1749169839051,-1221.80389487,0.0002421,10]
[364632815,1749169839059,-21318.32940839,0.00024211,2]
[364632817,1749169839069,-1361.16794688,0.00024211,78]
[364632819,1749169839078,-637.65032713,0.00024211,2]
[364632821,1749169839087,-440.0,0.00024252,2]
[364632822,1749169839096,-2000.0,0.00024273,2]
[364632824,1749169839105,-2000.0,0.00024273,2]
[364632826,1749169839115,-2000.0,0.00024273,2]
[364632828,1749169839124,-2000.0,0.00024273,2]
[364632830,1749169839134,-2000.0,0.00024273,2]
[364632832,1749169839143,-2000.0,0.00024273,2]
[364632834,1749169839152,-2000.0,0.00024273,2]
[364632836,1749169839161,-2000.0,0.00024273,2]
[364632838,1749169839170,-2000.0,0.00024273,2]
[364632840,1749169839181,-2000.0,0.00024273,2]
[364632842,1749169839190,-2000.0,0.00024273,2]
[364632844,1749169839200,-2000.0,0.00024273,2]
[364632846,1749169839210,-665.35522838,0.00024273,2]
[364632848,1749169839219,-1253.17,0.000243,2]
[364632850,1749169839229,-2000.0,0.000243,2]
[364632852,1749169839238,-2000.0,0.000243,2]
[364632854,1749169839247,-2224.0,0.000243,2]
[364632856,1749169839257,-709.0,0.000243,2]
[364632858,1749169839266,-1963.883176,0.000243,5]
[364632860,1749169839276,-405.0,0.000243,2]
[364632862,1749169839285,-1743.0,0.00024308,3]
[364632864,1749169839295,-1743.0,0.00024308,3]
[364632866,1749169839304,-1743.0,0.00024308,3]
[364632868,1749169839313,-1743.0,0.00024308,3]
[364632870,1749169839322,-1743.0,0.00024308,3]
[364632872,1749169839333,-1307.71583531,0.00024308,3]
[364632884,1749169839441,-151.0,0.00024309,7]
[364632886,1749169839452,-151.0,0.00024309,7]
[364632888,1749169839462,-151.0,0.00024309,7]
[364632891,1749169839472,-151.0,0.00024309,7]
[364632892,1749169839481,-151.0,0.00024309,7]
[364632894,1749169839491,-151.0,0.00024309,7]
[364632896,1749169839500,-151.0,0.00024309,7]
[364632898,1749169839510,-151.0,0.00024309,7]
[364632900,1749169839519,-151.0,0.00024309,7]
[364632902,1749169839529,-151.0,0.00024309,7]
[364632904,1749169839538,-211.269124,0.00024309,7]
[364632906,1749169839548,-151.0,0.00024309,7]
[364632908,1749169839558,-151.0,0.00024309,7]
[364632910,1749169839566,-151.0,0.00024309,7]
[364632912,1749169839576,-151.0,0.00024309,7]
[364632914,1749169839585,-151.0,0.00024309,7]
[364632916,1749169839595,-151.0,0.00024309,7]
[364632918,1749169839605,-151.0,0.00024309,7]
[364632920,1749169839615,-151.0,0.00024309,7]
[364632922,1749169839624,-151.0,0.00024309,7]
[364632924,1749169839634,-151.0,0.00024309,7]
[364632926,1749169839643,-151.0,0.00024309,7]
[364632928,1749169839652,-221.254532,0.00024309,7]
[364632930,1749169839663,-151.0,0.00024309,7]
[364632932,1749169839672,-151.0,0.00024309,7]
[364632934,1749169839681,-151.0,0.00024309,7]
[364632936,1749169839691,-151.0,0.00024309,7]
[364632938,1749169839703,-151.0,0.00024309,7]
[364632940,1749169839713,-151.0,0.00024309,7]
[364632942,1749169839722,-151.0,0.00024309,7]
[364632944,1749169839732,-151.0,0.00024309,7]
[364632946,1749169839741,-151.0,0.00024309,7]
[364632948,1749169839751,-151.0,0.00024309,7]
[364632951,1749169839760,-151.0,0.00024309,7]
[364632952,1749169839769,-151.0,0.00024309,7]
[364632954,1749169839779,-178.078633,0.00024309,7]
[364632956,1749169839788,-151.0,0.00024309,7]
[364632958,1749169839797,-151.0,0.00024309,7]
[364632960,1749169839806,-151.0,0.00024309,7]
[364632962,1749169839815,-151.0,0.00024309,7]
[364632964,1749169839824,-151.0,0.00024309,7]
[364632966,1749169839833,-151.0,0.00024309,7]
[364632968,1749169839843,-151.0,0.00024309,7]
[364632970,1749169839852,-151.0,0.00024309,7]
[364632972,1749169839862,-151.0,0.00024309,7]
[364632974,1749169839871,-151.0,0.00024309,7]
[364632976,1749169839881,-151.0,0.00024309,7]
[364632978,1749169839891,-151.0,0.00024309,7]
[364632980,1749169839901,-151.0,0.00024309,7]
[364632982,1749169839911,-151.0,0.00024309,7]
[364632984,1749169839920,-151.0,0.00024309,7]
[364632986,1749169839930,-276.509574,0.00024309,7]
[364632988,1749169839939,-151.0,0.00024309,7]
[364632990,1749169839948,-151.0,0.00024309,7]
[364632992,1749169839958,-151.0,0.00024309,7]
[364632994,1749169839967,-151.0,0.00024309,7]
[364632996,1749169839976,-151.0,0.00024309,7]
[364632998,1749169839985,-151.0,0.00024309,7]
[364633000,1749169839994,-151.0,0.00024309,7]
[364633002,1749169840003,-279.841274,0.00024309,7]
[364633004,1749169840012,-151.0,0.00024309,7]
[364633005,1749169840021,-151.0,0.00024309,7]
[364633007,1749169840030,-151.0,0.00024309,7]
[364633009,1749169840040,-151.0,0.00024309,7]
[364633011,1749169840049,-255.18757,0.00024309,7]
[364633013,1749169840057,-151.0,0.00024309,7]
[364633015,1749169840066,-151.0,0.00024309,7]
[364633017,1749169840075,-151.0,0.00024309,7]
[364633019,1749169840084,-151.0,0.00024309,7]
[364633021,1749169840093,-788.01673,0.00024309,7]
[364633023,1749169840102,-151.0,0.00024309,7]
[364633025,1749169840111,-788.01673,0.00024309,7]
[364633027,1749169840120,-788.01673,0.00024309,7]
[364633029,1749169840130,-788.01673,0.00024309,7]
[364633031,1749169840139,-788.01673,0.00024309,7]
[364633033,1749169840148,-788.01673,0.00024309,7]
[364633035,1749169840157,-788.01673,0.00024309,7]
[364633037,1749169840166,-788.01673,0.00024309,7]
[364633039,1749169840175,-788.01673,0.00024309,7]
[364633041,1749169840186,-788.01673,0.00024309,7]
[364633043,1749169840195,-788.01673,0.00024309,7]
[364633045,1749169840206,-788.01673,0.00024309,7]
[364633047,1749169840214,-788.01673,0.00024309,7]
[364633049,1749169840224,-788.01673,0.00024309,7]
[364633051,1749169840234,-788.01673,0.00024309,7]
[364633053,1749169840243,-788.01673,0.00024309,7]
[364633055,1749169840252,-788.01673,0.00024309,7]
[364633057,1749169840261,-788.01673,0.00024309,7]
[364633059,1749169840271,-788.01673,0.00024309,7]
[364633061,1749169840280,-788.016729,0.00024309,7]
[364633063,1749169840289,-151.0,0.00024309,7]
[364633065,1749169840299,-151.0,0.00024309,7]
[364633067,1749169840308,-151.0,0.00024309,7]
[364633069,1749169840318,-151.0,0.00024309,7]
[364633071,1749169840328,-151.0,0.00024309,7]
[364633073,1749169840341,-159.80008,0.00024309,7]
[364633075,1749169840351,-207.05840928,0.00024309,2]
[364633077,1749169840360,-160.0,0.00024311,5]
[364633079,1749169840370,-1207580.16949415,0.00024311,20]
[364633081,1749169840379,-1054211.56313575,0.00024311,20]
[364633083,1749169840388,-865458.45627052,0.00024311,20]
[364633085,1749169840398,-180237.38225412,0.00024311,20]
[364633087,1749169840414,-1341.51732223,0.00024311,20]
[364633090,1749169840427,-12610.78271666,0.00024311,20]
[364633092,1749169840439,-8653.68419657,0.00024311,20]
[364633094,1749169840454,-917.44033907,0.00024311,20]
[364633097,1749169840465,-92051.29804353,0.00024311,20]
[364633102,1749169840510,-440.0,0.00019868,2]
[364633104,1749169840520,-309.81384677,0.00020142,2]
[364633106,1749169840529,-9272.90198854,0.00024311,20]
[364633121,1749169840662,-116.23618834,0.00024311,20]
[364633659,1749169846274,-962.0,0.00023996,2]
[364633661,1749169846284,-61587.86666423,0.00024311,20]
[364637938,1749170086502,150.0,0.0001798,2]
[364637939,1749170086894,166.03,0.00018836,2]
[364637940,1749170160516,150.0,0.00017986,2]
[364637941,1749170161083,154.53,0.00018842,2]
[364637944,1749170232150,150.0,0.0001798,2]
[364637945,1749170232567,150.0,0.00018837,2]
[364637947,1749170305159,130.84500805,0.00017996,2]
[364637948,1749170305181,19.15499195,0.00017996,2]
[364637949,1749170305598,150.0,0.00018853,2]
[364637952,1749170452604,150.0,0.00017979,2]
[364637953,1749170453101,150.0,0.00018835,2]
[364637956,1749170526119,150.0,0.00017992,2]
[364637957,1749170526741,150.0,0.00018849,2]
[364637958,1749170600649,150.0,0.00017984,2]
[364637959,1749170601030,150.0,0.00018841,2]
[364637960,1749170673004,150.0,0.00017979,2]
[364637961,1749170673420,150.0,0.00018835,2]
[364637962,1749170715506,198.471339,0.00013699,2]
[364637964,1749170735122,-207.05840928,0.00019311,2]
[364637965,1749170735142,-300.0,0.00019319,2]
[364637966,1749170735163,-129.0345401,0.0001932,2]
[364637967,1749170742097,-150.20675691,0.0001932,2]
[364637968,1749170743519,150.0,0.00017984,2]
[364637969,1749170744061,150.0,0.0001884,2]
[364637971,1749170814978,150.0,0.00018422,2]
[364637972,1749170842627,-150.0,0.00019299,2]
[364637973,1749170842648,-164.90024098,0.00019491,2]
[364637974,1749170842671,-178.23606573,0.00019493,2]
[364637975,1749170842691,-517.94778407,0.00019591,2]
[364637976,1749170843076,-682.05221593,0.00019591,2]
[364637977,1749170843097,-254.0,0.00019591,2]
[364637978,1749170843117,-300.0,0.00019591,2]
[364637979,1749170843136,-430.0,0.00019592,2]
[364637980,1749170843155,-430.0,0.00019592,2]
[364637981,1749170843314,-235.32777173,0.00019592,2]
[364637982,1749170843342,-204.67222827,0.00019592,2]
[364637983,1749170843363,-440.0,0.00019592,2]
[364637984,1749170843384,-355.30816701,0.00019592,2]
[364637985,1749170849141,-84.69183299,0.00019592,2]
[364637986,1749170849162,-440.0,0.00019592,2]
[364637987,1749170849183,-357.35223421,0.00019592,2]
[364637988,1749170849203,-355.04618047,0.00019592,2]
[364637989,1749170850088,-84.95381953,0.00019592,2]
[364637990,1749170850112,-440.0,0.00019592,2]
[364637991,1749170850136,-440.0,0.00019592,2]
[364637992,1749170850156,-347.79749337,0.00019592,2]
[364637993,1749170886483,150.0,0.00018945,2]
[364637995,1749170910054,3390.0,0.000246,120]
[364637998,1749170949081,-92.20250663,0.00019592,2]
[364637999,1749170949103,-440.0,0.00019592,2]
[364638000,1749170949125,-440.0,0.00019592,2]
[364638001,1749170949149,-440.0,0.00019592,2]
[364638002,1749170949171,-440.0,0.00019592,2]
[364638003,1749170949191,-440.0,0.00019592,2]
[364638004,1749170949212,-246.61382571,0.00019592,2]
[364638005,1749170949234,-440.0,0.00019592,2]
[364638006,1749170949256,-440.0,0.00019592,2]
[364638007,1749170949279,-440.0,0.00019592,2]
[364638008,1749170949302,-440.0,0.00019592,2]
[364638009,1749170949322,-202.66,0.00019592,2]
[364638010,1749170949343,-440.0,0.00019592,2]
[364638011,1749170949366,-440.0,0.00019592,2]
[364638012,1749170949387,-430.0,0.00019592,2]
[364638013,1749170949407,-401.99410861,0.00019592,2]
[364638014,1749170949429,-232.7082935,0.00019592,2]
[364638015,1749170949449,-440.0,0.00019592,2]
[364638016,1749170949471,-440.0,0.00019592,2]
[364638017,1749170949492,-440.0,0.00019592,2]
[364638018,1749170949516,-430.0,0.00019592,2]
[364638019,1749170949542,-440.0,0.00019592,2]
[364638020,1749170949565,-430.0,0.00019592,2]
[364638021,1749170949586,-440.0,0.00019592,2]
[364638022,1749170949606,-440.0,0.00019593,2]
[364638023,1749170949626,-440.0,0.00019593,2]
[364638024,1749170949646,-163.62418419,0.00019593,2]
[364638025,1749170949665,-440.0,0.00019593,2]
[364638026,1749170949684,-514.75936249,0.00019593,2]
[364638027,1749170949707,-430.0,0.00019593,2]
[364638028,1749170949727,-440.0,0.00019593,2]
[364638029,1749170949748,-440.0,0.00019593,2]
[364638030,1749170949767,-102.76872918,0.00019593,2]
[364638031,1749170949807,-337.23127082,0.00019593,2]
[364638032,1749170949826,-440.0,0.00019593,2]
[364638033,1749170949846,-302.85,0.00019593,2]
[364638034,1749170949867,-440.0,0.00019593,2]
[364638035,1749170949888,-440.0,0.00019593,2]
[364638036,1749170949908,-500.0,0.00019593,2]
[364638037,1749170949929,-440.0,0.00019593,2]
[364638038,1749170949950,-440.0,0.00019593,2]
[364638039,1749170949970,-440.0,0.00019593,2]
[364638040,1749170949989,-440.0,0.00019593,2]
[364638041,1749170950009,-440.0,0.00019593,2]
[364638042,1749170950029,-440.0,0.00019593,2]
[364638043,1749170950049,-440.0,0.00019593,2]
[364638044,1749170950069,-440.0,0.00019593,2]
[364638045,1749170950090,-430.0,0.00019593,2]
[364638046,1749170950110,-430.0,0.00019593,2]
[364638047,1749170950130,-228.86,0.00019593,2]
[364638048,1749170950151,-440.0,0.00019593,2]
[364638049,1749170950171,-440.0,0.00019593,2]
[364638050,1749170950192,-430.0,0.00019593,2]
[364638051,1749170950211,-440.0,0.00019593,2]
[364638052,1749170950232,-352.57628775,0.00019593,2]
[364638053,1749170950252,-440.0,0.00019593,2]
[364638054,1749170950273,-440.0,0.00019593,2]
[364638055,1749170950293,-155.35276005,0.00019593,2]
[364638056,1749170950313,-434.34168179,0.00019593,2]
[364638057,1749170950460,-440.0,0.00019593,2]
[364638058,1749170950481,-440.0,0.00019593,2]
[364638059,1749170950514,-430.0,0.00019593,2]
[364638060,1749170950536,-440.0,0.00019593,2]
[364638061,1749170950558,-440.0,0.00019593,2]
[364638062,1749170950579,-430.0,0.00019593,2]
[364638063,1749170950600,-440.0,0.00019593,2]
[364638064,1749170950623,-440.0,0.00019593,2]
[364638065,1749170950649,-440.0,0.00019593,2]
[364638066,1749170950670,-430.0,0.00019593,2]
[364638067,1749170950690,-430.0,0.00019593,2]
[364638068,1749170950714,-430.0,0.00019593,2]
[364638069,1749170950735,-410.94953045,0.00019593,2]
[364638070,1749170950757,-430.0,0.00019593,2]
[364638071,1749170950779,-352.27976703,0.00019593,2]
[364638072,1749170950800,-440.0,0.00019593,2]
[364638073,1749170950822,-440.0,0.00019593,2]
[364638074,1749170950842,-440.0,0.00019593,2]